fUSD/lending_fUSD_20240319
["ID","MTS","AMOUNT","RATE_DAILY","PERIOD"]
[319600817,1710885139842,-500.0,0.00032876,2]
[319600818,1710885139853,-1603.73,0.00032876,2]
[319600819,1710885139862,-266.14125175,0.00032876,2]
[319600820,1710885139871,-500.0,0.00032876,2]
[319600821,1710885139882,-500.0,0.00032876,2]
[319600822,1710885139891,-892.48,0.00032876,2]
[319600823,1710885139901,-654.11,0.00032876,2]
[319600824,1710885139910,-1478.75,0.00032876,2]
[319600825,1710885139920,-1208.68,0.00032876,2]
[319600826,1710885139929,-628.64929205,0.00032876,2]
[319600827,1710885139938,-1477.07,0.00032876,2]
[319600828,1710885139947,-1428.4,0.00032876,2]
[319600829,1710885139957,-526.9,0.00032876,2]
[319600830,1710885139966,-2930.57,0.00032876,2]
[319600831,1710885139976,-163.0,0.00032876,2]
[319600832,1710885139986,-1084.77,0.00032876,2]
[319600833,1710885139995,-420.64905081,0.00032876,2]
[319600834,1710885140005,-948.83,0.00032876,2]
[319600835,1710885140014,-500.0,0.00032876,2]
[319600836,1710885140023,-500.0,0.00032876,2]
[319600837,1710885140033,-1970.31,0.00032876,2]
[319600838,1710885140043,-748.56,0.00032876,2]
[319600839,1710885140052,-853.25,0.00032876,2]
[319600840,1710885140062,-1046.29,0.00032876,2]
[319600841,1710885140071,-608.95,0.00032876,2]
[319600842,1710885140081,-500.0,0.00032876,2]
[319600843,1710885140090,-636.98,0.00032876,2]
[319600844,1710885140100,-500.0,0.00032876,2]
[319600845,1710885140110,-500.0,0.00032876,2]
[319600846,1710885140119,-1279.27,0.00032876,2]
[319600847,1710885140130,-1827.01,0.00032876,2]
[319600848,1710885140140,-500.0,0.00032876,2]
[319600849,1710885140149,-500.0,0.00032876,2]
[319600850,1710885140159,-1006.11,0.00032876,2]
[319600851,1710885140170,-500.0,0.00032876,2]
[319600852,1710885140180,-1949.93,0.00032876,2]
[319600853,1710885140190,-1192.24,0.00032876,2]
[319600854,1710885140200,-2813.53,0.00032876,2]
[319600855,1710885140211,-845.98,0.00032876,2]
[319600856,1710885140221,-1011.35,0.00032876,2]
[319600857,1710885140231,-1701.68,0.00032876,2]
[319600858,1710885140241,-1413.56,0.00032876,2]
[319600859,1710885140252,-671.21,0.00032876,2]
[319600860,1710885140262,-856.2,0.00032876,2]
[319600861,1710885140272,-500.0,0.00032876,2]
[319600862,1710885140281,-1896.31,0.00032876,2]
[319600863,1710885140291,-2782.61,0.00032876,2]
[319600864,1710885140301,-500.0,0.00032876,2]
[319600865,1710885140311,-619.27180708,0.00032876,2]
[319600866,1710885140320,-609.95,0.00032876,2]
[319600867,1710885140330,-500.0,0.00032876,2]
[319600868,1710885140340,-1536.94,0.00032876,2]
[319600869,1710885140351,-2552.49,0.00032876,2]
[319600870,1710885140361,-2081.49,0.00032876,2]
[319600871,1710885140371,-500.0,0.00032876,2]
[319600872,1710885140382,-1715.16,0.00032876,2]
[319600873,1710885140392,-1266.65,0.00032876,2]
[319600874,1710885140401,-1645.88,0.00032876,2]
[319600875,1710885140411,-500.0,0.00032876,2]
[319600876,1710885140421,-500.0,0.00032876,2]
[319600877,1710885140430,-500.0,0.00032876,2]
[319600878,1710885140440,-500.0,0.00032876,2]
[319600879,1710885140449,-1784.06,0.00032876,2]
[319600880,1710885140460,-1425.44,0.00032876,2]
[319600881,1710885140472,-645.99,0.00032876,2]
[319600882,1710885140482,-500.0,0.00032876,2]
[319600883,1710885140491,-500.0,0.00032876,2]
[319600884,1710885140501,-856.99,0.00032876,2]
[319600885,1710885140511,-500.0,0.00032876,2]
[319600886,1710885140521,-1509.6,0.00032876,2]
[319600887,1710885140532,-500.0,0.00032876,2]
[319600888,1710885140542,-1899.37,0.00032876,2]
[319600889,1710885140554,-825.81,0.00032876,2]
[319600890,1710885140565,-500.0,0.00032876,2]
[319600891,1710885140574,-500.0,0.00032876,2]
[319600892,1710885140584,-1668.46,0.00032876,2]
[319600893,1710885140593,-500.0,0.00032876,2]
[319600894,1710885140603,-1817.59,0.00032876,2]
[319600895,1710885140612,-612.56,0.00032876,2]
[319600896,1710885140622,-500.0,0.00032876,2]
[319600897,1710885140633,-641.85,0.00032876,2]
[319600898,1710885140642,-500.0,0.00032876,2]
[319600899,1710885140652,-3349.51,0.00032876,2]
[319600900,1710885140662,-1668.73,0.00032876,2]
[319600901,1710885140671,-500.0,0.00032876,2]
[319600902,1710885140680,-2185.83,0.00032876,2]
[319600903,1710885140689,-1047.88,0.00032876,2]
[319600904,1710885140699,-500.0,0.00032876,2]
[319600905,1710885140709,-709.8,0.00032876,2]
[319600906,1710885140718,-500.0,0.00032876,2]
[319600907,1710885140728,-3189.82,0.00032876,2]
[319600908,1710885140738,-529.39490344,0.00032876,2]
[319600909,1710885140747,-506.71684947,0.00032876,2]
[319600910,1710885140756,-2131.99,0.00032876,2]
[319600911,1710885140766,-500.0,0.00032876,2]
[319600912,1710885140776,-500.0,0.00032876,2]
[319600913,1710885140786,-2548.99,0.00032876,2]
[319600914,1710885140795,-1717.39,0.00032876,2]
[319600915,1710885140805,-500.0,0.00032876,2]
[319600916,1710885140814,-500.0,0.00032876,2]
[319600917,1710885140824,-3499.12,0.00032876,2]
[319600918,1710885140833,-3366.11,0.00032876,2]
[319600919,1710885140843,-920.95,0.00032876,2]
[319600920,1710885140853,-1172.13,0.00032876,2]
[319600921,1710885140863,-762.14,0.00032876,2]
[319600922,1710885140874,-500.0,0.00032876,2]
[319600923,1710885140886,-500.0,0.00032876,2]
[319600924,1710885140896,-500.0,0.00032876,2]
[319600925,1710885140906,-500.0,0.00032876,2]
[319600926,1710885140918,-500.0,0.00032876,2]
[319600927,1710885140929,-651.81,0.00032876,2]
[319600928,1710885140940,-2755.73,0.00032876,2]
[319600929,1710885140949,-500.0,0.00032876,2]
[319600930,1710885140959,-2171.26,0.00032876,2]
[319600931,1710885140971,-554.31,0.00032876,2]
[319600932,1710885140981,-913.38,0.00032876,2]
[319600933,1710885140991,-517.56,0.00032876,2]
[319600934,1710885141000,-500.0,0.00032876,2]
[319600935,1710885141010,-622.91,0.00032876,2]
[319600936,1710885141020,-1265.69,0.00032876,2]
[319600937,1710885141030,-576.05,0.00032876,2]
[319600938,1710885141039,-2191.46,0.00032876,2]
[319600939,1710885141049,-1378.12,0.00032876,2]
[319600940,1710885141058,-500.0,0.00032876,2]
[319600941,1710885141068,-832.3,0.00032876,2]
[319600942,1710885141078,-3259.21,0.00032876,2]
[319600943,1710885141087,-516.5,0.00032876,2]
[319600944,1710885141097,-500.0,0.00032876,2]
[319600945,1710885141107,-500.0,0.00032876,2]
[319600946,1710885141117,-750.69,0.00032876,2]
[319600947,1710885141127,-6099.55,0.00032876,2]
[319600948,1710885141138,-500.0,0.00032876,2]
[319600949,1710885141148,-705.53,0.00032876,2]
[319600950,1710885141158,-510.82,0.00032876,2]
[319600951,1710885141168,-583.59,0.00032876,2]
[319600952,1710885141179,-554.14,0.00032876,2]
[319600953,1710885141189,-1054.91,0.00032876,2]
[319600954,1710885141199,-1769.12,0.00032876,2]
[319600955,1710885141209,-500.0,0.00032876,2]
[319600956,1710885141218,-500.0,0.00032876,2]
[319600957,1710885141228,-758.11,0.00032876,2]
[319600958,1710885141238,-500.0,0.00032876,2]
[319600959,1710885141247,-614.47,0.00032876,2]
[319600960,1710885141257,-500.0,0.00032876,2]
[319600961,1710885141266,-565.83,0.00032876,2]
[319600962,1710885141276,-3031.48,0.00032876,2]
[319600963,1710885141287,-1793.05,0.00032876,2]
[319600964,1710885141296,-1813.36,0.00032876,2]
[319600965,1710885141306,-1781.25,0.00032876,2]
[319600966,1710885141316,-500.0,0.00032876,2]
[319600967,1710885141325,-500.0,0.00032876,2]
[319600968,1710885141334,-5948.25,0.00032876,2]
[319600969,1710885141344,-721.19,0.00032876,2]
[319600970,1710885141354,-500.0,0.00032876,2]
[319600971,1710885141364,-500.0,0.00032876,2]
[319600972,1710885141373,-2298.94,0.00032876,2]
[319600973,1710885141384,-500.0,0.00032876,2]
[319600974,1710885141395,-1467.68,0.00032876,2]
[319600975,1710885141405,-2048.3,0.00032876,2]
[319600976,1710885141415,-500.0,0.00032876,2]
[319600977,1710885141425,-740.6,0.00032876,2]
[319600978,1710885141435,-3725.64,0.00032876,2]
[319600979,1710885141444,-499.69781789,0.00032876,2]
[319600980,1710885141454,-7446.28,0.00032876,2]
[319600981,1710885141465,-1176.01,0.00032876,2]
[319600982,1710885141480,-500.0,0.00032876,2]
[319600983,1710885141490,-1639.61,0.00032876,2]
[319600984,1710885141499,-500.0,0.00032876,2]
[319600985,1710885141509,-814.35,0.00032876,2]
[319600986,1710885141519,-1904.86,0.00032876,2]
[319600987,1710885141529,-531.89,0.00032876,2]
[319600988,1710885141538,-541.15,0.00032876,2]
[319600989,1710885141548,-505.23,0.00032876,2]
[319600990,1710885141558,-1726.69,0.00032876,2]
[319600991,1710885141569,-500.0,0.00032876,2]
[319600992,1710885141579,-706.92,0.00032876,2]
[319600993,1710885141588,-1397.11,0.00032876,2]
[319600994,1710885141598,-644.74,0.00032876,2]
[319600995,1710885141607,-723.57,0.00032876,2]
[319600996,1710885141617,-2864.27,0.00032876,2]
[319600997,1710885141626,-2584.9,0.00032876,2]
[319600998,1710885141636,-500.0,0.00032876,2]
[319600999,1710885141646,-6961.76,0.00032876,2]
[319601000,1710885141655,-500.0,0.00032876,2]
[319601001,1710885141665,-1043.19,0.00032876,2]
[319601002,1710885141675,-915.89,0.00032876,2]
[319601003,1710885141685,-500.0,0.00032876,2]
[319601004,1710885141695,-1045.63,0.00032876,2]
[319601005,1710885141704,-1312.85,0.00032876,2]
[319601006,1710885141714,-961.87,0.00032876,2]
[319601007,1710885141724,-3736.86,0.00032876,2]
[319601008,1710885141733,-1764.05,0.00032876,2]
[319601009,1710885141742,-500.0,0.00032876,2]
[319601010,1710885141752,-838.02,0.00032876,2]
[319601011,1710885141762,-500.0,0.00032876,2]
[319601012,1710885141772,-1302.7,0.00032876,2]
[319601013,1710885141782,-2820.33,0.00032876,2]
[319601014,1710885141792,-500.0,0.00032876,2]
[319601015,1710885141802,-500.0,0.00032876,2]
[319601016,1710885141812,-2171.52,0.00032876,2]
[319601017,1710885141821,-4792.93,0.00032876,2]
[319601018,1710885141831,-500.0,0.00032876,2]
[319601019,1710885141840,-500.0,0.00032876,2]
[319601020,1710885141850,-2181.61,0.00032876,2]
[319601021,1710885141859,-1199.36,0.00032876,2]
[319601022,1710885141869,-500.0,0.00032876,2]
[319601023,1710885141879,-501.95,0.00032876,2]
[319601024,1710885141888,-500.0,0.00032876,2]
[319601025,1710885141898,-1621.75,0.00032876,2]
[319601026,1710885141907,-589.7,0.00032876,2]
[319601027,1710885141917,-500.0,0.00032876,2]
[319601028,1710885141926,-855.86,0.00032876,2]
[319601029,1710885141936,-3227.64,0.00032876,2]
[319601030,1710885141945,-500.0,0.00032876,2]
[319601031,1710885141955,-863.41,0.00032876,2]
[319601032,1710885141965,-2111.52,0.00032876,2]
[319601033,1710885141974,-2950.43,0.00032876,2]
[319601034,1710885141984,-500.0,0.00032876,2]
[319601035,1710885141993,-500.0,0.00032876,2]
[319601036,1710885142003,-5122.72,0.00032876,2]
[319601037,1710885142013,-824.14,0.00032876,2]
[319601038,1710885142022,-500.0,0.00032876,2]
[319601039,1710885142032,-10026.4,0.00032876,2]
[319601040,1710885142041,-500.0,0.00032876,2]
[319601041,1710885142050,-500.0,0.00032876,2]
[319601042,1710885142060,-2275.12,0.00032876,2]
[319601043,1710885142070,-500.0,0.00032876,2]
[319601044,1710885142079,-565.71,0.00032876,2]
[319601045,1710885142089,-1033.05,0.00032876,2]
[319601046,1710885142183,-126732.2,0.00032876,2]
[319601047,1710885142193,-504.07,0.00032876,2]
[319601048,1710885142203,-500.0,0.00032876,2]
[319601049,1710885142212,-500.0,0.00032876,2]
[319601050,1710885142222,-4852.56,0.00032876,2]
[319601051,1710885142231,-2937.74,0.00032876,2]
[319601052,1710885142241,-1976.68,0.00032876,2]
[319601053,1710885142250,-777.71,0.00032876,2]
[319601054,1710885142260,-1133.54,0.00032876,2]
[319601055,1710885142270,-2119.46,0.00032876,2]
[319601056,1710885142280,-500.0,0.00032876,2]
[319601057,1710885142290,-7711.4,0.00032876,2]
[319601058,1710885142300,-524.36,0.00032876,2]
[319601059,1710885142310,-500.0,0.00032876,2]
[319601060,1710885142319,-7310.51,0.00032876,2]
[319601061,1710885142329,-14442.37,0.00032876,2]
[319601062,1710885142338,-500.0,0.00032876,2]
[319601063,1710885142347,-500.0,0.00032876,2]
[319601064,1710885142357,-500.0,0.00032876,2]
[319601065,1710885142366,-5376.56,0.00032876,2]
[319601066,1710885142376,-4230.03,0.00032876,2]
[319601067,1710885142386,-582.24,0.00032876,2]
[319601068,1710885142396,-751.89,0.00032876,2]
[319601069,1710885142405,-542.91,0.00032876,2]
[319601070,1710885142415,-450.833369,0.00032876,2]
[319601071,1710885142425,-500.0,0.00032876,2]
[319601072,1710885142435,-1949.45,0.00032876,2]
[319601073,1710885142445,-5623.75,0.00032876,2]
[319601074,1710885142456,-1033.59,0.00032876,2]
[319601075,1710885142467,-5877.04,0.00032876,2]
[319601076,1710885142480,-825.5,0.00032876,2]
[319601077,1710885142490,-521.04,0.00032876,2]
[319601078,1710885142500,-636.0,0.00032876,2]
[319601079,1710885142510,-503.31,0.00032876,2]
[319601080,1710885142519,-500.0,0.00032876,2]
[319601081,1710885142529,-3068.4,0.00032876,2]
[319601082,1710885142538,-2857.27,0.00032876,2]
[319601083,1710885142549,-631.3,0.00032876,2]
[319601084,1710885142559,-814.62,0.00032876,2]
[319601085,1710885142568,-500.0,0.00032876,2]
[319601086,1710885142577,-2550.99,0.00032876,2]
[319601087,1710885142587,-1149.73,0.00032876,2]
[319601088,1710885142596,-7487.75,0.00032876,2]
[319601089,1710885142606,-1638.18,0.00032876,2]
[319601090,1710885142615,-7814.4,0.00032876,2]
[319601091,1710885142625,-529.96,0.00032876,2]
[319601092,1710885142634,-705.8,0.00032876,2]
[319601093,1710885142644,-594.04,0.00032876,2]
[319601094,1710885142653,-500.0,0.00032876,2]
[319601095,1710885142663,-500.0,0.00032876,2]
[319601096,1710885142672,-500.0,0.00032876,2]
[319601097,1710885142681,-500.0,0.00032876,2]
[319601098,1710885142691,-3016.27,0.00032876,2]
[319601099,1710885142701,-500.0,0.00032876,2]
[319601100,1710885142710,-38480.53,0.00032876,2]
[319601101,1710885142720,-2988.01,0.00032876,2]
[319601102,1710885142730,-968.19,0.00032876,2]
[319601103,1710885142739,-767.81,0.00032876,2]
[319601104,1710885142749,-3358.0,0.00032876,2]
[319601105,1710885142759,-500.0,0.00032876,2]
[319601106,1710885142768,-500.0,0.00032876,2]
[319601107,1710885142777,-2995.65,0.00032876,2]
[319601108,1710885142786,-2879.31,0.00032876,2]
[319601109,1710885142795,-3475.26,0.00032876,2]
[319601110,1710885142805,-817.64,0.00032876,2]
[319601111,1710885142815,-626.59,0.00032876,2]
[319601112,1710885142824,-1532.23,0.00032876,2]
[319601113,1710885142834,-500.0,0.00032876,2]
[319601114,1710885142843,-1675.59,0.00032876,2]
[319601115,1710885142853,-1175.56,0.00032876,2]
[319601116,1710885142862,-1109.08,0.00032876,2]
[319601117,1710885142872,-1104.88,0.00032876,2]
[319601118,1710885142884,-1008.18,0.00032876,2]
[319601119,1710885142894,-2383.57,0.00032876,2]
[319601120,1710885142904,-6551.95,0.00032876,2]
[319601121,1710885142914,-20378.39,0.00032876,2]
[319601122,1710885142924,-3428.01,0.00032876,2]
[319601123,1710885142933,-500.0,0.00032876,2]
[319601124,1710885142943,-500.0,0.00032876,2]
[319601125,1710885142953,-724.41,0.00032876,2]
[319601126,1710885142962,-4023.07,0.00032876,2]
[319601127,1710885142972,-2691.76,0.00032876,2]
[319601128,1710885142981,-500.0,0.00032876,2]
[319601129,1710885142991,-518.98,0.00032876,2]
[319601130,1710885143001,-532.04,0.00032876,2]
[319601131,1710885143010,-500.0,0.00032876,2]
[319601132,1710885143019,-3655.41,0.00032876,2]
[319601133,1710885143030,-3100.4,0.00032876,2]
[319601134,1710885143040,-532.61,0.00032876,2]
[319601135,1710885143049,-5255.9,0.00032876,2]
[319601136,1710885143058,-1495.58,0.00032876,2]
[319601137,1710885143067,-646.23,0.00032876,2]
[319601138,1710885143077,-500.0,0.00032876,2]
[319601139,1710885143086,-856.3,0.00032876,2]
[319601140,1710885143095,-2848.19,0.00032876,2]
[319601141,1710885143104,-1919.76,0.00032876,2]
[319601142,1710885143113,-500.0,0.00032876,2]
[319601143,1710885143123,-514.35,0.00032876,2]
[319601144,1710885143132,-84885.72,0.00032876,2]
[319601145,1710885143142,-917.99,0.00032876,2]
[319601146,1710885143152,-7528.25,0.00032876,2]
[319601147,1710885143162,-2075.6,0.00032876,2]
[319601148,1710885143172,-556.06,0.00032876,2]
[319601149,1710885143181,-500.0,0.00032876,2]
[319601150,1710885143192,-4053.66,0.00032876,2]
[319601151,1710885143202,-950.92,0.00032876,2]
[319601152,1710885143212,-1498.56,0.00032876,2]
[319601153,1710885143222,-6114.82,0.00032876,2]
[319601154,1710885143232,-1068.02,0.00032876,2]
[319601155,1710885143242,-1140.75,0.00032876,2]
[319601156,1710885143252,-1363.9,0.00032876,2]
[319601157,1710885143262,-500.0,0.00032876,2]
[319601158,1710885143272,-680.37,0.00032876,2]
[319601159,1710885143281,-7331.78,0.00032876,2]
[319601160,1710885143291,-500.0,0.00032876,2]
[319601161,1710885143301,-6608.67,0.00032876,2]
[319601162,1710885143310,-5255.76,0.00032876,2]
[319601163,1710885143321,-1065.89,0.00032876,2]
[319601164,1710885143331,-535.13,0.00032876,2]
[319601165,1710885143341,-2244.41,0.00032876,2]
[319601166,1710885143351,-1134.2,0.00032876,2]
[319601167,1710885143360,-12679.11,0.00032876,2]
[319601168,1710885143370,-501.67,0.00032876,2]
[319601169,1710885143380,-500.0,0.00032876,2]
[319601170,1710885143404,-500.0,0.00032876,2]
[319601171,1710885143413,-500.0,0.00032876,2]
[319601172,1710885143423,-952.29,0.00032876,2]
[319601173,1710885143432,-16057.66,0.00032876,2]
[319601174,1710885143441,-5689.03,0.00032876,2]
[319601175,1710885143450,-9318.38,0.00032876,2]
[319601176,1710885143460,-661.71,0.00032876,2]
[319601177,1710885143472,-6799.03,0.00032876,2]
[319601178,1710885143483,-4026.73,0.00032876,2]
[319601179,1710885143493,-3035.5,0.00032876,2]
[319601180,1710885143503,-3750.07,0.00032876,2]
[319601181,1710885143512,-935.16,0.00032876,2]
[319601182,1710885143522,-6185.77,0.00032876,2]
[319601183,1710885143532,-1750.15,0.00032876,2]
[319601184,1710885143541,-507.49,0.00032876,2]
[319601185,1710885143551,-21984.05,0.00032876,2]
[319601186,1710885143560,-500.0,0.00032876,2]
[319601187,1710885143570,-682.19,0.00032876,2]
[319601188,1710885143579,-1656.75,0.00032876,2]
[319601189,1710885143588,-3232.39,0.00032876,2]
[319601190,1710885143597,-2644.39,0.00032876,2]
[319601191,1710885143607,-4012.77,0.00032876,2]
[319601192,1710885143616,-500.0,0.00032876,2]
[319601193,1710885143625,-5906.29,0.00032876,2]
[319601194,1710885143634,-500.0,0.00032876,2]
[319601195,1710885143644,-500.0,0.00032876,2]
[319601196,1710885143654,-1898.34,0.00032876,2]
[319601197,1710885143663,-6356.12,0.00032876,2]
[319601198,1710885143672,-860.9,0.00032876,2]
[319601199,1710885143682,-2450.74,0.00032876,2]
[319601200,1710885143691,-741.49,0.00032876,2]
[319601201,1710885143701,-988.62,0.00032876,2]
[319601202,1710885143710,-500.0,0.00032876,2]
[319601203,1710885143719,-502.93,0.00032876,2]
[319601204,1710885143729,-3281.78,0.00032876,2]
[319601205,1710885143738,-10393.93,0.00032876,2]
[319601206,1710885143748,-887.69,0.00032876,2]
[319601207,1710885143758,-2054.31,0.00032876,2]
[319601208,1710885143767,-1073.2,0.00032876,2]
[319601209,1710885143776,-500.0,0.00032876,2]
[319601210,1710885143786,-5676.82,0.00032876,2]
[319601211,1710885143795,-500.0,0.00032876,2]
[319601212,1710885143805,-2336.1,0.00032876,2]
[319601213,1710885143814,-784.81,0.00032876,2]
[319601214,1710885143823,-500.0,0.00032876,2]
[319601215,1710885143832,-2928.09,0.00032876,2]
[319601216,1710885143841,-958.78,0.00032876,2]
[319601217,1710885143850,-5305.03,0.00032876,2]
[319601218,1710885143859,-12462.52,0.00032876,2]
[319601219,1710885143870,-742.85,0.00032876,2]
[319601220,1710885143879,-6273.21,0.00032876,2]
[319601221,1710885143890,-500.0,0.00032876,2]
[319601222,1710885143899,-500.0,0.00032876,2]
[319601223,1710885143909,-3248.64,0.00032876,2]
[319601224,1710885143918,-8000.71,0.00032876,2]
[319601225,1710885143927,-7424.85,0.00032876,2]
[319601226,1710885143936,-9028.78,0.00032876,2]
[319601227,1710885143945,-7152.27,0.00032876,2]
[319601228,1710885143954,-603.25,0.00032876,2]
[319601229,1710885143963,-11402.88,0.00032876,2]
[319601230,1710885143973,-920.58,0.00032876,2]
[319601231,1710885143982,-862.02,0.00032876,2]
[319601232,1710885143991,-5180.59,0.00032876,2]
[319601233,1710885144001,-263.08958623,0.00032876,2]
[319601234,1710885144010,-1058.28,0.00032876,2]
[319601235,1710885144019,-6676.62,0.00032876,2]
[319601236,1710885144028,-50748.97,0.00032876,2]
[319601237,1710885144038,-12563.76,0.00032876,2]
[319601238,1710885144047,-4392.06,0.00032876,2]
[319601239,1710885144057,-500.0,0.00032876,2]
[319601240,1710885144066,-500.0,0.00032876,2]
[319601241,1710885144075,-947.45,0.00032876,2]
[319601242,1710885144095,-994.47,0.00032876,2]
[319601243,1710885144105,-1127.56,0.00032876,2]
[319601244,1710885144115,-6289.47,0.00032876,2]
[319601245,1710885144125,-500.0,0.00032876,2]
[319601246,1710885144134,-494.42474301,0.00032876,2]
[319601247,1710885144144,-1563.9,0.00032876,2]
[319601248,1710885144154,-1554.32,0.00032876,2]
[319601249,1710885144163,-2538.59,0.00032876,2]
[319601250,1710885144173,-9279.39,0.00032876,2]
[319601251,1710885144183,-2973.35,0.00032876,2]
[319601252,1710885144193,-1071.73,0.00032876,2]
[319601253,1710885144203,-1557.91,0.00032876,2]
[319601254,1710885144213,-500.0,0.00032876,2]
[319601255,1710885144223,-921.84,0.00032876,2]
[319601256,1710885144234,-1497.67,0.00032876,2]
[319601257,1710885144245,-5460.3,0.00032876,2]
[319601258,1710885144255,-549.68,0.00032876,2]
[319601259,1710885144265,-500.0,0.00032876,2]
[319601260,1710885144276,-500.0,0.00032876,2]
[319601261,1710885144286,-866.95,0.00032876,2]
[319601262,1710885144297,-23885.26,0.00032876,2]
[319601263,1710885144307,-34338.3,0.00032876,2]
[319601264,1710885144317,-6038.59,0.00032876,2]
[319601265,1710885144328,-2241.19,0.00032876,2]
[319601266,1710885144338,-870.15,0.00032876,2]
[319601267,1710885144348,-1003.35,0.00032876,2]
[319601268,1710885144358,-500.0,0.00032876,2]
[319601269,1710885144369,-5507.6,0.00032876,2]
[319601270,1710885144379,-5378.59,0.00032876,2]
[319601271,1710885144390,-615.59,0.00032876,2]
[319601272,1710885144400,-500.0,0.00032876,2]
[319601273,1710885144411,-681.39,0.00032876,2]
[319601274,1710885144421,-3623.08,0.00032876,2]
[319601275,1710885144432,-659.74,0.00032876,2]
[319601276,1710885144442,-500.0,0.00032876,2]
[319601277,1710885144453,-1648.34,0.00032876,2]
[319601278,1710885144463,-500.0,0.00032876,2]
[319601279,1710885144475,-7204.29,0.00032876,2]
[319601280,1710885144486,-976.18,0.00032876,2]
[319601281,1710885144496,-1912.73,0.00032876,2]
[319601282,1710885144506,-3082.4,0.00032876,2]
[319601283,1710885144517,-2522.27,0.00032876,2]
[319601284,1710885144528,-6424.1,0.00032876,2]
[319601285,1710885144538,-5688.06,0.00032876,2]
[319601286,1710885144550,-1570.96,0.00032876,2]
[319601287,1710885144560,-500.0,0.00032876,2]
[319601288,1710885144570,-2703.38,0.00032876,2]
[319601289,1710885144580,-1409.47,0.00032876,2]
[319601290,1710885144590,-10351.23,0.00032876,2]
[319601291,1710885144600,-500.0,0.00032876,2]
[319601292,1710885144610,-723.42,0.00032876,2]
[319601293,1710885144619,-3159.85,0.00032876,2]
[319601294,1710885144629,-19207.21,0.00032876,2]
[319601295,1710885144639,-3910.17,0.00032876,2]
[319601296,1710885144650,-989.66,0.00032876,2]
[319601297,1710885144660,-500.0,0.00032876,2]
[319601298,1710885144670,-1575.99,0.00032876,2]
[319601299,1710885144681,-500.0,0.00032876,2]
[319601300,1710885144691,-2518.49,0.00032876,2]
[319601301,1710885144701,-500.0,0.00032876,2]
[319601302,1710885144711,-602.98,0.00032876,2]
[319601303,1710885144722,-2902.62,0.00032876,2]
[319601304,1710885144732,-1081.46,0.00032876,2]
[319601305,1710885144743,-996.99,0.00032876,2]
[319601306,1710885144754,-11316.17,0.00032876,2]
[319601307,1710885144765,-722.94,0.00032876,2]
[319601308,1710885144776,-21059.27,0.00032876,2]
[319601309,1710885144786,-1144.28,0.00032876,2]
[319601310,1710885144796,-500.0,0.00032876,2]
[319601311,1710885144807,-592.77,0.00032876,2]
[319601312,1710885144817,-3248.34,0.00032876,2]
[319601313,1710885144828,-611.45,0.00032876,2]
[319601314,1710885144838,-500.0,0.00032876,2]
[319601315,1710885144848,-500.0,0.00032876,2]
[319601316,1710885144859,-1214.02,0.00032876,2]